[Event "*** Titled Tuesday Blitz"]
[Site "Chess.com"]
[Date "2019.07.02"]
[Round "3"]
[White "xdb"]
[Black "ClockworkKubrick"]
[Result "1-0"]
[WhiteElo "2229"]
[BlackElo "2093"]
[TimeControl "180+2"]
[EndTime "13:41:49 PDT"]
[Termination "xdb won by resignation"]

1. d3 {[%clk 0:03:01.9]} 1... d6 {[%clk 0:03:00.9]} 2. e4 {[%clk 0:03:02.5]}
2... Nf6 {[%clk 0:03:02.6]} 3. Nc3 {[%clk 0:03:02.9]} 3... g6 {[%clk 0:03:04.1]}
4. Nf3 {[%clk 0:02:58.7]} 4... Bg7 {[%clk 0:03:05.4]} 5. g3 {[%clk 0:03:00.3]}
5... O-O {[%clk 0:03:06.6]} 6. Bg2 {[%clk 0:03:02.1]} 6... c5 {[%clk 0:03:07.8]}
7. O-O {[%clk 0:03:03.6]} 7... Nc6 {[%clk 0:03:09.1]} 8. h3 {[%clk 0:03:00.8]}
8... a6 {[%clk 0:03:09.3]} 9. a4 {[%clk 0:02:59.6]} 9... e5 {[%clk 0:03:08.7]}
10. Bg5 {[%clk 0:02:56.3]} 10... Be6 {[%clk 0:03:09.6]} 11. Qd2 {[%clk
0:02:56.2]} 11... Rb8 {[%clk 0:03:07.9]} 12. Nd5 {[%clk 0:02:50.8]} 12... Bxd5
{[%clk 0:03:08.1]} 13. exd5 {[%clk 0:02:52]} 13... Ne7 {[%clk 0:03:07.8]} 14. c4
{[%clk 0:02:53.5]} 14... b5 {[%clk 0:03:07.5]} 15. axb5 {[%clk 0:02:53.8]} 15...
axb5 {[%clk 0:03:08.4]} 16. Ra7 {[%clk 0:02:53.5]} 16... Re8 {[%clk 0:03:04.6]}
17. Qc2 {[%clk 0:02:42.7]} 17... Qb6 {[%clk 0:02:52.3]} 18. Ra2 {[%clk
0:02:18.6]} 18... bxc4 {[%clk 0:02:44.7]} 19. dxc4 {[%clk 0:02:20.5]} 19... Qb3
{[%clk 0:02:44.1]} 20. Qxb3 {[%clk 0:02:21.6]} 20... Rxb3 {[%clk 0:02:44.4]} 21.
Nd2 {[%clk 0:02:23.2]} 21... Rb4 {[%clk 0:02:39.9]} 22. Bxf6 {[%clk 0:02:08]}
22... Bxf6 {[%clk 0:02:39.8]} 23. Ne4 {[%clk 0:02:09.6]} 23... Kg7 {[%clk
0:02:25.6]} 24. Nxd6 {[%clk 0:02:10.3]} 24... Reb8 {[%clk 0:02:26.2]} 25. Ne4
{[%clk 0:01:53.7]} 25... Rxc4 {[%clk 0:02:22.6]} 26. Ra6 {[%clk 0:01:47.5]}
26... Nxd5 {[%clk 0:02:18.3]} 27. Rd6 {[%clk 0:01:37.9]} 27... Rd4 {[%clk
0:02:11.1]} 28. Rxd5 {[%clk 0:01:34.8]} 28... Rxd5 {[%clk 0:02:08.4]} 29. Nxf6
{[%clk 0:01:36.3]} 29... Rd2 {[%clk 0:02:07.9]} 30. Ne4 {[%clk 0:01:31.6]} 30...
Rc2 {[%clk 0:02:07.4]} 31. Rb1 {[%clk 0:01:26.6]} 31... c4 {[%clk 0:02:05.6]}
32. Bf1 {[%clk 0:01:18.8]} 32... f5 {[%clk 0:02:06.4]} 33. Nc5 {[%clk
0:01:08.2]} 33... c3 {[%clk 0:02:02.3]} 34. b4 {[%clk 0:01:08.6]} 34... Rb2
{[%clk 0:01:58.1]} 35. Rc1 {[%clk 0:01:08.7]} 35... c2 {[%clk 0:01:49.5]} 36.
Nd3 {[%clk 0:01:09.3]} 36... Rb1 {[%clk 0:01:43.5]} 37. Rxc2 {[%clk 0:01:06.9]}
37... e4 {[%clk 0:01:44.8]} 38. Rb2 {[%clk 0:01:03.8]} 38... Rxb2 {[%clk
0:01:44.3]} 39. Nxb2 {[%clk 0:01:04.5]} 39... Rxb4 {[%clk 0:01:45.6]} 40. Nc4
{[%clk 0:01:04.9]} 40... Rb1 {[%clk 0:01:43.5]} 41. h4 {[%clk 0:01:03.3]} 41...
Kf6 {[%clk 0:01:43.5]} 42. Kg2 {[%clk 0:01:01.7]} 42... h6 {[%clk 0:01:44.8]}
43. Ne3 {[%clk 0:01:01.4]} 43... g5 {[%clk 0:01:41.4]} 44. h5 {[%clk 0:00:52.2]}
44... Rc1 {[%clk 0:01:36.3]} 45. Bb5 {[%clk 0:00:41.9]} 45... Ke6 {[%clk
0:01:26.2]} 46. Be8 {[%clk 0:00:37.4]} 46... Rc5 {[%clk 0:01:21]} 47. Bg6 {[%clk
0:00:37.5]} 47... Kf6 {[%clk 0:01:21.7]} 48. g4 {[%clk 0:00:36.9]} 48... f4
{[%clk 0:01:18.6]} 49. Nf5 {[%clk 0:00:37.4]} 49... Rc2 {[%clk 0:01:13.1]} 50.
Kf1 {[%clk 0:00:27.9]} 50... f3 {[%clk 0:01:10.5]} 51. Kg1 {[%clk 0:00:26.3]}
51... Ke5 {[%clk 0:01:05.4]} 52. Ng3 {[%clk 0:00:25.7]} 52... Rc1+ {[%clk
0:01:03.8]} 53. Kh2 {[%clk 0:00:26.5]} 53... Re1 {[%clk 0:01:05]} 54. Nf5 {[%clk
0:00:26.1]} 54... Kf4 {[%clk 0:01:02.7]} 55. Nxh6 {[%clk 0:00:27.6]} 55... e3
{[%clk 0:01:03.2]} 56. fxe3+ {[%clk 0:00:28.6]} 56... Kxe3 {[%clk 0:01:04.4]}
57. Nf5+ {[%clk 0:00:29.7]} 57... Kf4 {[%clk 0:01:01.4]} 58. h6 {[%clk
0:00:24.3]} 58... f2 {[%clk 0:00:52]} 59. Ng3 {[%clk 0:00:24.3]} 59... Kxg4
{[%clk 0:00:47.7]} 60. h7 {[%clk 0:00:23.1]} 60... Re3 {[%clk 0:00:17.5]} 61.
h8=Q {[%clk 0:00:20.3]} 61... Rxg3 {[%clk 0:00:19.1]} 62. Qc8+ {[%clk
0:00:19.7]} 62... Kh4 {[%clk 0:00:19.3]} 63. Qh8+ {[%clk 0:00:20.5]} 63... Kg4
{[%clk 0:00:20.1]} 64. Bf5+ {[%clk 0:00:21.3]} 64... Kf4 {[%clk 0:00:21.3]} 65.
Qb8+ {[%clk 0:00:20.7]} 65... Kf3 {[%clk 0:00:22.4]} 66. Qxg3+ {[%clk
0:00:19.9]} 1-0

[Event "*** Titled Tuesday Blitz"]
[Site "Chess.com"]
[Date "2019.07.02"]
[Round "3"]
[White "silverback96"]
[Black "Saitama_Hero"]
[Result "0-1"]
[WhiteElo "2104"]
[BlackElo "2250"]
[TimeControl "180+2"]
[EndTime "13:41:52 PDT"]
[Termination "Saitama_Hero won by checkmate"]

1. d4 {[%clk 0:02:59.9]} 1... Nf6 {[%clk 0:02:59.5]} 2. c4 {[%clk 0:03:01]} 2...
e6 {[%clk 0:02:55.9]} 3. g3 {[%clk 0:03:01.9]} 3... a6 {[%clk 0:02:55.6]} 4. Bg2
{[%clk 0:03:02]} 4... d5 {[%clk 0:02:56.8]} 5. Nf3 {[%clk 0:03:02]} 5... Be7
{[%clk 0:02:57.9]} 6. O-O {[%clk 0:03:03.4]} 6... O-O {[%clk 0:02:59.4]} 7. Nbd2
{[%clk 0:03:00.4]} 7... Nc6 {[%clk 0:02:58.6]} 8. Qc2 {[%clk 0:02:47.5]} 8...
Rb8 {[%clk 0:02:51.1]} 9. a3 {[%clk 0:02:44.4]} 9... dxc4 {[%clk 0:02:44.1]} 10.
Qxc4 {[%clk 0:02:37.5]} 10... Na5 {[%clk 0:02:42.5]} 11. Qc2 {[%clk 0:02:36]}
11... b5 {[%clk 0:02:37.5]} 12. b4 {[%clk 0:02:36.8]} 12... Nb7 {[%clk
0:02:34.8]} 13. Ne5 {[%clk 0:02:15]} 13... Bd7 {[%clk 0:02:31.1]} 14. Bb2 {[%clk
0:02:12.3]} 14... Nd6 {[%clk 0:02:28.1]} 15. Rfc1 {[%clk 0:02:10]} 15... Rc8
{[%clk 0:02:26.6]} 16. Nc6 {[%clk 0:01:57.9]} 16... Bxc6 {[%clk 0:02:26.8]} 17.
Bxc6 {[%clk 0:01:59.7]} 17... Nd7 {[%clk 0:02:24.4]} 18. e4 {[%clk 0:01:57]}
18... Nb6 {[%clk 0:02:23.4]} 19. e5 {[%clk 0:01:50.4]} 19... Ndc4 {[%clk
0:02:23.7]} 20. Nb3 {[%clk 0:01:31.5]} 20... f6 {[%clk 0:01:42.8]} 21. Bb7
{[%clk 0:01:11.5]} 21... Rb8 {[%clk 0:01:42.8]} 22. Bxa6 {[%clk 0:01:12.9]}
22... c6 {[%clk 0:01:41.4]} 23. Nc5 {[%clk 0:00:47.9]} 23... Bxc5 {[%clk
0:01:40]} 24. dxc5 {[%clk 0:00:49.8]} 24... Na4 {[%clk 0:01:34]} 25. Rab1 {[%clk
0:00:22.2]} 25... fxe5 {[%clk 0:01:30.3]} 26. Ba1 {[%clk 0:00:21.3]} 26... Qe7
{[%clk 0:01:26.9]} 27. Qa2 {[%clk 0:00:17.1]} 27... Nxa3 {[%clk 0:00:45.3]} 28.
Qxa3 {[%clk 0:00:15.3]} 28... Ra8 {[%clk 0:00:46.9]} 29. Bxb5 {[%clk 0:00:15.6]}
29... cxb5 {[%clk 0:00:46.9]} 30. Qe3 {[%clk 0:00:11.7]} 30... Rf5 {[%clk
0:00:44.8]} 31. Bxe5 {[%clk 0:00:13]} 31... Raf8 {[%clk 0:00:46]} 32. Bd4 {[%clk
0:00:12.8]} 32... e5 {[%clk 0:00:37.8]} 33. Ba1 {[%clk 0:00:12.9]} 33... Rf3
{[%clk 0:00:31.8]} 34. Qxe5 {[%clk 0:00:12.6]} 34... Qf7 {[%clk 0:00:25.6]} 35.
Rf1 {[%clk 0:00:12.6]} 35... Rxf2 {[%clk 0:00:25.8]} 36. Qe1 {[%clk 0:00:08.4]}
36... Rxf1+ {[%clk 0:00:20.4]} 37. Qxf1 {[%clk 0:00:10.3]} 37... Qe6 {[%clk
0:00:18.8]} 38. Qd3 {[%clk 0:00:10.5]} 38... Qa2 {[%clk 0:00:16.8]} 39. Re1
{[%clk 0:00:09.5]} 39... Qf2+ {[%clk 0:00:15.4]} 40. Kh1 {[%clk 0:00:10.6]}
40... Qxe1+ {[%clk 0:00:16.9]} 41. Kg2 {[%clk 0:00:12.5]} 41... Qxa1 {[%clk
0:00:18.5]} 42. Kh3 {[%clk 0:00:13.9]} 42... Qf6 {[%clk 0:00:16.6]} 43. Qd5+
{[%clk 0:00:14.9]} 43... Kh8 {[%clk 0:00:15.3]} 44. c6 {[%clk 0:00:14.2]} 44...
Nc3 {[%clk 0:00:15.7]} 45. Qc5 {[%clk 0:00:13.5]} 45... Ne4 {[%clk 0:00:15.1]}
46. Qxb5 {[%clk 0:00:13.9]} 46... Ng5+ {[%clk 0:00:15.4]} 47. Kg4 {[%clk
0:00:13.5]} 47... Ne6 {[%clk 0:00:14.1]} 48. Qd5 {[%clk 0:00:09.8]} 48... Qg6+
{[%clk 0:00:12.8]} 49. Kh3 {[%clk 0:00:09.1]} 49... Ng5+ {[%clk 0:00:14.4]} 50.
Kh4 {[%clk 0:00:07.4]} 50... Nf3+ {[%clk 0:00:14.1]} 51. Kh3 {[%clk 0:00:08.4]}
51... Qh6+ {[%clk 0:00:15.3]} 52. Kg2 {[%clk 0:00:08.2]} 52... Qxh2+ {[%clk
0:00:15.9]} 53. Kf1 {[%clk 0:00:08.1]} 53... Nd4+ {[%clk 0:00:16.9]} 54. Ke1
{[%clk 0:00:09]} 54... Qe2# {[%clk 0:00:18.4]} 0-1

[Event "*** Titled Tuesday Blitz"]
[Site "Chess.com"]
[Date "2019.07.02"]
[Round "3"]
[White "pedromartinez91"]
[Black "TST2014"]
[Result "1/2-1/2"]
[WhiteElo "2441"]
[BlackElo "2561"]
[TimeControl "180+2"]
[EndTime "13:42:02 PDT"]
[Termination "Game drawn - insufficient material"]

1. e4 {[%clk 0:03:01.9]} 1... c5 {[%clk 0:03:00.5]} 2. Nf3 {[%clk 0:03:03]} 2...
Nc6 {[%clk 0:03:01.4]} 3. Bb5 {[%clk 0:03:03.3]} 3... g6 {[%clk 0:03:02.2]} 4.
O-O {[%clk 0:03:03.1]} 4... Bg7 {[%clk 0:03:03.3]} 5. c3 {[%clk 0:03:04.7]} 5...
Nf6 {[%clk 0:03:03.2]} 6. Qa4 {[%clk 0:03:06.1]} 6... O-O {[%clk 0:03:01.2]} 7.
d4 {[%clk 0:03:06.9]} 7... d5 {[%clk 0:02:56.9]} 8. e5 {[%clk 0:03:01.4]} 8...
Ne4 {[%clk 0:02:56.1]} 9. Bxc6 {[%clk 0:03:02]} 9... bxc6 {[%clk 0:02:56.4]} 10.
Qxc6 {[%clk 0:03:03.5]} 10... Rb8 {[%clk 0:02:56.5]} 11. Qa4 {[%clk 0:02:55.5]}
11... Qb6 {[%clk 0:02:50.4]} 12. dxc5 {[%clk 0:02:52.6]} 12... Nxc5 {[%clk
0:02:49.6]} 13. Qh4 {[%clk 0:02:50.2]} 13... Nd3 {[%clk 0:02:36.3]} 14. Bh6
{[%clk 0:02:44.6]} 14... Qxb2 {[%clk 0:02:33.4]} 15. Nbd2 {[%clk 0:02:25.1]}
15... Qxc3 {[%clk 0:02:32]} 16. Rad1 {[%clk 0:02:03]} 16... Nxe5 {[%clk
0:02:25.6]} 17. Bxg7 {[%clk 0:01:48.5]} 17... Kxg7 {[%clk 0:02:11]} 18. Qxe7
{[%clk 0:01:47.7]} 18... Nc6 {[%clk 0:01:44.5]} 19. Qh4 {[%clk 0:01:34.3]} 19...
Qf6 {[%clk 0:01:44.1]} 20. Qa4 {[%clk 0:01:25.3]} 20... Rb4 {[%clk 0:01:42.3]}
21. Qa3 {[%clk 0:01:16.9]} 21... a5 {[%clk 0:01:30.9]} 22. Rc1 {[%clk
0:01:17.7]} 22... Bg4 {[%clk 0:01:30.3]} 23. Rc5 {[%clk 0:01:09.1]} 23... Rd8
{[%clk 0:01:21.4]} 24. Rfc1 {[%clk 0:01:09.4]} 24... Nd4 {[%clk 0:01:20.4]} 25.
Nxd4 {[%clk 0:01:07.5]} 25... Qxd4 {[%clk 0:01:15.7]} 26. Qxa5 {[%clk
0:01:06.1]} 26... Qxd2 {[%clk 0:01:12.8]} 27. Qxd8 {[%clk 0:01:05.7]} 27... Bd1
{[%clk 0:01:06.3]} 28. h3 {[%clk 0:00:46.4]} 28... Re4 {[%clk 0:01:01.8]} 29.
Qxd5 {[%clk 0:00:40.7]} 29... Re1+ {[%clk 0:01:01.7]} 30. Kh2 {[%clk 0:00:41.7]}
30... Qf4+ {[%clk 0:01:02.4]} 31. g3 {[%clk 0:00:42.2]} 31... Qxf2+ {[%clk
0:00:55.1]} 32. Qg2 {[%clk 0:00:43.7]} 32... Qe3 {[%clk 0:00:49.9]} 33. R5c3
{[%clk 0:00:26.9]} 33... Qe5 {[%clk 0:00:46.3]} 34. Rc5 {[%clk 0:00:27.6]} 34...
Qe3 {[%clk 0:00:43.7]} 35. R5c3 {[%clk 0:00:20.3]} 35... Qe5 {[%clk 0:00:41.4]}
36. R3c2 {[%clk 0:00:17.3]} 36... Bxc2 {[%clk 0:00:31.7]} 37. Rxe1 {[%clk
0:00:18.1]} 37... Qxe1 {[%clk 0:00:31.5]} 38. Qxc2 {[%clk 0:00:20]} 38... h5
{[%clk 0:00:30]} 39. a4 {[%clk 0:00:19.9]} 39... h4 {[%clk 0:00:31.2]} 40. gxh4
{[%clk 0:00:21.1]} 40... Qe5+ {[%clk 0:00:30.7]} 41. Kg2 {[%clk 0:00:21.5]}
41... Qd5+ {[%clk 0:00:31.6]} 42. Kg3 {[%clk 0:00:22.1]} 42... Qe5+ {[%clk
0:00:32.1]} 43. Kg2 {[%clk 0:00:22.7]} 43... Qd5+ {[%clk 0:00:32.9]} 44. Kf2
{[%clk 0:00:24]} 44... Qd4+ {[%clk 0:00:33.5]} 45. Ke2 {[%clk 0:00:24.8]} 45...
Qe5+ {[%clk 0:00:33.5]} 46. Kd2 {[%clk 0:00:24.6]} 46... Qf4+ {[%clk 0:00:33.3]}
47. Kd1 {[%clk 0:00:24.8]} 47... Qxh4 {[%clk 0:00:33.4]} 48. Qc3+ {[%clk
0:00:25.5]} 48... Kh7 {[%clk 0:00:32.7]} 49. a5 {[%clk 0:00:27]} 49... Qa4+
{[%clk 0:00:28.5]} 50. Ke2 {[%clk 0:00:27.8]} 50... Qb5+ {[%clk 0:00:26.9]} 51.
Kf3 {[%clk 0:00:28.2]} 51... Qf5+ {[%clk 0:00:26.8]} 52. Kg3 {[%clk 0:00:29.4]}
52... Qg5+ {[%clk 0:00:27.8]} 53. Kh2 {[%clk 0:00:30.2]} 53... Qf4+ {[%clk
0:00:28]} 54. Kg2 {[%clk 0:00:31.5]} 54... Qe4+ {[%clk 0:00:28.9]} 55. Qf3
{[%clk 0:00:31.5]} 55... Qc2+ {[%clk 0:00:29.5]} 56. Kg1 {[%clk 0:00:30.2]}
56... Qc1+ {[%clk 0:00:25.6]} 57. Kg2 {[%clk 0:00:31.2]} 57... Qd2+ {[%clk
0:00:25.5]} 58. Qf2 {[%clk 0:00:30.8]} 58... Qxa5 {[%clk 0:00:22.4]} 59. Qxf7+
{[%clk 0:00:31.6]} 59... Kh6 {[%clk 0:00:23.6]} 60. Qf8+ {[%clk 0:00:32.5]}
60... Kg5 {[%clk 0:00:21.4]} 61. Qe7+ {[%clk 0:00:33.4]} 61... Kf5 {[%clk
0:00:20.9]} 62. Qd7+ {[%clk 0:00:32.1]} 62... Kf6 {[%clk 0:00:21.4]} 63. Qd6+
{[%clk 0:00:32.3]} 63... Kg7 {[%clk 0:00:22]} 64. Qe7+ {[%clk 0:00:33.4]} 64...
Kg8 {[%clk 0:00:22.3]} 65. Kg3 {[%clk 0:00:32.7]} 65... Qf5 {[%clk 0:00:19.6]}
66. Qe8+ {[%clk 0:00:31.3]} 66... Kg7 {[%clk 0:00:20.3]} 67. Qe7+ {[%clk
0:00:32.8]} 67... Qf7 {[%clk 0:00:20.5]} 68. Qxf7+ {[%clk 0:00:32]} 68... Kxf7
{[%clk 0:00:22.1]} 69. Kg4 {[%clk 0:00:33.9]} 69... Kf6 {[%clk 0:00:23.2]} 70.
h4 {[%clk 0:00:35.8]} 70... Kg7 {[%clk 0:00:23.7]} 71. Kg5 {[%clk 0:00:37.1]}
71... Kh7 {[%clk 0:00:24]} 72. h5 {[%clk 0:00:39]} 72... gxh5 {[%clk 0:00:24.9]}
73. Kxh5 {[%clk 0:00:40.9]} 1/2-1/2

[Event "*** Titled Tuesday Blitz"]
[Site "Chess.com"]
[Date "2019.07.02"]
[Round "3"]
[White "DenishevM"]
[Black "IMRosen"]
[Result "0-1"]
[WhiteElo "2602"]
[BlackElo "2571"]
[TimeControl "180+2"]
[EndTime "13:42:05 PDT"]
[Termination "IMRosen won by resignation"]

1. d4 {[%clk 0:03:01.9]} 1... Nf6 {[%clk 0:03:00.8]} 2. c4 {[%clk 0:03:00.1]}
2... Nc6 {[%clk 0:03:01.4]} 3. Nf3 {[%clk 0:02:57.7]} 3... e6 {[%clk 0:03:02]}
4. a3 {[%clk 0:02:57.5]} 4... g6 {[%clk 0:03:01.9]} 5. Nc3 {[%clk 0:02:58.6]}
5... Bg7 {[%clk 0:03:02.6]} 6. e4 {[%clk 0:02:59.6]} 6... d6 {[%clk 0:03:03.2]}
7. Be2 {[%clk 0:02:59.2]} 7... O-O {[%clk 0:03:04.1]} 8. O-O {[%clk 0:02:59.5]}
8... a5 {[%clk 0:03:04.7]} 9. Bg5 {[%clk 0:02:56.7]} 9... h6 {[%clk 0:03:03.5]}
10. Bh4 {[%clk 0:02:56.4]} 10... Qe8 {[%clk 0:02:43.5]} 11. Nb5 {[%clk
0:02:46.6]} 11... Qd7 {[%clk 0:02:24.1]} 12. e5 {[%clk 0:02:33.7]} 12... Ne8
{[%clk 0:02:11.9]} 13. Bg3 {[%clk 0:02:18.7]} 13... Ne7 {[%clk 0:02:04.2]} 14.
Bd3 {[%clk 0:02:05.2]} 14... b6 {[%clk 0:01:58.1]} 15. exd6 {[%clk 0:01:38.6]}
15... cxd6 {[%clk 0:01:55]} 16. a4 {[%clk 0:01:34.7]} 16... Bb7 {[%clk
0:01:54.8]} 17. Re1 {[%clk 0:01:35.7]} 17... Rc8 {[%clk 0:01:50.2]} 18. b3
{[%clk 0:01:36.6]} 18... Nc6 {[%clk 0:01:09.4]} 19. Rc1 {[%clk 0:01:23.6]} 19...
Nb4 {[%clk 0:01:05.4]} 20. Bb1 {[%clk 0:01:24.5]} 20... Bc6 {[%clk 0:00:55.8]}
21. Qd2 {[%clk 0:01:17.6]} 21... Bxb5 {[%clk 0:00:56]} 22. axb5 {[%clk
0:01:19.5]} 22... Nf6 {[%clk 0:00:57.7]} 23. Bf4 {[%clk 0:01:11.4]} 23... Kh7
{[%clk 0:00:53.3]} 24. h3 {[%clk 0:01:07.8]} 24... Rfd8 {[%clk 0:00:52.2]} 25.
Re2 {[%clk 0:01:02.2]} 25... Qb7 {[%clk 0:00:36.7]} 26. Rce1 {[%clk 0:01:00]}
26... d5 {[%clk 0:00:37.1]} 27. Ne5 {[%clk 0:01:01.1]} 27... dxc4 {[%clk
0:00:35.3]} 28. bxc4 {[%clk 0:01:02.8]} 28... Nh5 {[%clk 0:00:24.4]} 29. Qe3
{[%clk 0:00:36.1]} 29... Nxf4 {[%clk 0:00:21.7]} 30. Qxf4 {[%clk 0:00:38]} 30...
Bxe5 {[%clk 0:00:15]} 31. dxe5 {[%clk 0:00:39.9]} 31... Nd3 {[%clk 0:00:11.5]}
32. Bxd3 {[%clk 0:00:31.8]} 32... Rxd3 {[%clk 0:00:13.4]} 33. Re3 {[%clk
0:00:29.8]} 33... Rcd8 {[%clk 0:00:12.3]} 34. h4 {[%clk 0:00:25.8]} 34... Qe7
{[%clk 0:00:11.6]} 35. Qg3 {[%clk 0:00:23.3]} 35... Rd1 {[%clk 0:00:10.8]} 36.
Kh2 {[%clk 0:00:22.7]} 36... h5 {[%clk 0:00:10.5]} 37. Rxd1 {[%clk 0:00:21.3]}
37... Rxd1 {[%clk 0:00:11.9]} 38. Re4 {[%clk 0:00:22.7]} 38... Qd8 {[%clk
0:00:10.2]} 39. Rf4 {[%clk 0:00:23]} 39... Kg7 {[%clk 0:00:06.7]} 40. Qf3 {[%clk
0:00:23.1]} 40... Rd3 {[%clk 0:00:06.4]} 41. Rxf7+ {[%clk 0:00:23.4]} 41... Kg8
{[%clk 0:00:05.5]} 42. Qf4 {[%clk 0:00:21.2]} 42... Rd4 {[%clk 0:00:05.2]} 43.
Rf8+ {[%clk 0:00:15.7]} 43... Qxf8 {[%clk 0:00:05.9]} 44. Qxd4 {[%clk
0:00:17.3]} 44... Qe7 {[%clk 0:00:07.4]} 45. g3 {[%clk 0:00:17.1]} 45... Qc7
{[%clk 0:00:08]} 46. Qe4 {[%clk 0:00:17.3]} 46... Kg7 {[%clk 0:00:08.2]} 47. Qc6
{[%clk 0:00:17.9]} 47... Qd8 {[%clk 0:00:03]} 48. Qxe6 {[%clk 0:00:18.4]} 48...
a4 {[%clk 0:00:04.1]} 49. Qc6 {[%clk 0:00:12.4]} 49... a3 {[%clk 0:00:04]} 50.
Qb7+ {[%clk 0:00:13.7]} 50... Kh6 {[%clk 0:00:04.8]} 51. Qa7 {[%clk 0:00:13.6]}
51... Qd4 {[%clk 0:00:05.9]} 52. Kg1 {[%clk 0:00:11.7]} 52... Qa1+ {[%clk
0:00:05.8]} 53. Kg2 {[%clk 0:00:13.2]} 53... a2 {[%clk 0:00:07.4]} 54. Qa8
{[%clk 0:00:14.7]} 54... Kg7 {[%clk 0:00:05.5]} 55. Qa7+ {[%clk 0:00:13.8]}
55... Kh6 {[%clk 0:00:05.6]} 56. e6 {[%clk 0:00:09]} 56... Qb2 {[%clk
0:00:02.7]} 57. Qa8 {[%clk 0:00:10.1]} 57... a1=Q {[%clk 0:00:03.2]} 58. Qe4
{[%clk 0:00:08.5]} 58... Qe5 {[%clk 0:00:04.3]} 59. Qc6 {[%clk 0:00:07.4]} 59...
Qad4 {[%clk 0:00:04.7]} 60. Qe8 {[%clk 0:00:06.6]} 60... Qde4+ {[%clk
0:00:05.5]} 61. Kh2 {[%clk 0:00:07.6]} 61... Qg7 {[%clk 0:00:05.7]} 62. e7
{[%clk 0:00:06.3]} 62... Qexe7 {[%clk 0:00:06.3]} 63. Qc6 {[%clk 0:00:07.9]}
63... Qef6 {[%clk 0:00:07.2]} 64. Qg2 {[%clk 0:00:06.7]} 64... Qgf7 {[%clk
0:00:07.7]} 65. f4 {[%clk 0:00:08.2]} 65... Qxc4 {[%clk 0:00:08.4]} 0-1

[Event "*** Titled Tuesday Blitz"]
[Site "Chess.com"]
[Date "2019.07.02"]
[Round "3"]
[White "Berardino"]
[Black "saraswathii"]
[Result "1/2-1/2"]
[WhiteElo "2533"]
[BlackElo "2337"]
[TimeControl "180+2"]
[EndTime "13:42:11 PDT"]
[Termination "Game drawn - insufficient material"]

1. d4 {[%clk 0:03:01.9]} 1... Nc6 {[%clk 0:02:58.5]} 2. Nf3 {[%clk 0:03:00.7]}
2... d5 {[%clk 0:02:57.8]} 3. c4 {[%clk 0:02:59.4]} 3... e6 {[%clk 0:02:54.7]}
4. Nc3 {[%clk 0:03:00]} 4... Nf6 {[%clk 0:02:55.6]} 5. Bf4 {[%clk 0:03:00]} 5...
Bb4 {[%clk 0:02:54.9]} 6. e3 {[%clk 0:02:59.4]} 6... O-O {[%clk 0:02:54.8]} 7.
Bd3 {[%clk 0:02:55.6]} 7... dxc4 {[%clk 0:02:52.2]} 8. Bxc4 {[%clk 0:02:57.5]}
8... Nd5 {[%clk 0:02:52.9]} 9. Bxd5 {[%clk 0:02:53.2]} 9... exd5 {[%clk
0:02:52.6]} 10. h3 {[%clk 0:02:47.5]} 10... Be6 {[%clk 0:02:52.1]} 11. O-O
{[%clk 0:02:48.1]} 11... a6 {[%clk 0:02:45.4]} 12. Rc1 {[%clk 0:02:44.8]} 12...
Na5 {[%clk 0:02:32]} 13. Ne5 {[%clk 0:02:21.5]} 13... f6 {[%clk 0:02:11.9]} 14.
Nd3 {[%clk 0:02:21.4]} 14... Bd6 {[%clk 0:02:10.5]} 15. Bxd6 {[%clk 0:02:20.4]}
15... Qxd6 {[%clk 0:02:07.4]} 16. b3 {[%clk 0:02:05.5]} 16... b6 {[%clk
0:01:58.1]} 17. Ne2 {[%clk 0:01:37.9]} 17... Rac8 {[%clk 0:01:51.7]} 18. Ng3
{[%clk 0:01:36.8]} 18... c5 {[%clk 0:01:48]} 19. dxc5 {[%clk 0:01:37.4]} 19...
bxc5 {[%clk 0:01:48.3]} 20. Qd2 {[%clk 0:01:30.6]} 20... Nb7 {[%clk 0:01:45.6]}
21. Nf4 {[%clk 0:01:31.4]} 21... Rfd8 {[%clk 0:01:41.6]} 22. Rfd1 {[%clk
0:01:26.6]} 22... Qe5 {[%clk 0:01:22.6]} 23. Qe2 {[%clk 0:01:18.6]} 23... Qd6
{[%clk 0:01:10.1]} 24. Nxe6 {[%clk 0:00:48.3]} 24... Qxe6 {[%clk 0:01:09.7]} 25.
Rd2 {[%clk 0:00:49.7]} 25... Rd6 {[%clk 0:01:05.2]} 26. Qf3 {[%clk 0:00:46.9]}
26... Rcd8 {[%clk 0:01:01.2]} 27. Rcd1 {[%clk 0:00:41.5]} 27... g6 {[%clk
0:00:57.9]} 28. Ne2 {[%clk 0:00:31]} 28... g5 {[%clk 0:00:40.7]} 29. Ng3 {[%clk
0:00:31.5]} 29... Kf8 {[%clk 0:00:33.7]} 30. Nf5 {[%clk 0:00:24.7]} 30... R6d7
{[%clk 0:00:34.4]} 31. Qg4 {[%clk 0:00:21.6]} 31... Na5 {[%clk 0:00:29.5]} 32.
h4 {[%clk 0:00:21.2]} 32... h5 {[%clk 0:00:26.1]} 33. Qf3 {[%clk 0:00:19]} 33...
Qf7 {[%clk 0:00:22.2]} 34. Nh6 {[%clk 0:00:13.1]} 34... Qg6 {[%clk 0:00:21.8]}
35. hxg5 {[%clk 0:00:15]} 35... Qxg5 {[%clk 0:00:20.9]} 36. Nf5 {[%clk
0:00:16.4]} 36... Qg4 {[%clk 0:00:18.5]} 37. Kf1 {[%clk 0:00:14.1]} 37... Qxf3
{[%clk 0:00:18.9]} 38. gxf3 {[%clk 0:00:16]} 38... Nc6 {[%clk 0:00:20.3]} 39. f4
{[%clk 0:00:16]} 39... Kf7 {[%clk 0:00:21.4]} 40. Ke2 {[%clk 0:00:16.5]} 40...
Ke6 {[%clk 0:00:22.5]} 41. Ng3 {[%clk 0:00:16.1]} 41... h4 {[%clk 0:00:23.9]}
42. Nf1 {[%clk 0:00:16.9]} 42... f5 {[%clk 0:00:25.2]} 43. Nh2 {[%clk
0:00:17.8]} 43... d4 {[%clk 0:00:24.5]} 44. Nf3 {[%clk 0:00:18.2]} 44... dxe3
{[%clk 0:00:23.4]} 45. fxe3 {[%clk 0:00:19]} 45... Rxd2+ {[%clk 0:00:23.5]} 46.
Rxd2 {[%clk 0:00:20.4]} 46... Rxd2+ {[%clk 0:00:24.5]} 47. Kxd2 {[%clk 0:00:22]}
47... Kd5 {[%clk 0:00:23.2]} 48. Nxh4 {[%clk 0:00:23.1]} 48... Ke4 {[%clk
0:00:24.7]} 49. Ng6 {[%clk 0:00:24.3]} 49... Nb4 {[%clk 0:00:25.6]} 50. a3
{[%clk 0:00:23.7]} 50... Nd5 {[%clk 0:00:26.4]} 51. Ne5 {[%clk 0:00:23.8]} 51...
Nxe3 {[%clk 0:00:26.1]} 52. Nd7 {[%clk 0:00:25]} 52... Kd4 {[%clk 0:00:15.5]}
53. Nxc5 {[%clk 0:00:25.5]} 53... Nf1+ {[%clk 0:00:16.7]} 54. Ke1 {[%clk
0:00:26.4]} 54... Ne3 {[%clk 0:00:16.7]} 55. Nxa6 {[%clk 0:00:26.8]} 55... Nc2+
{[%clk 0:00:18.1]} 56. Kd2 {[%clk 0:00:27.9]} 56... Nxa3 {[%clk 0:00:19.6]} 57.
Nc7 {[%clk 0:00:28.1]} 57... Ke4 {[%clk 0:00:17.9]} 58. Ne6 {[%clk 0:00:27.5]}
58... Nb5 {[%clk 0:00:19.1]} 59. Ke2 {[%clk 0:00:26.7]} 59... Nc3+ {[%clk
0:00:18.8]} 60. Kf2 {[%clk 0:00:27.3]} 60... Nd5 {[%clk 0:00:20.3]} 61. Kg3
{[%clk 0:00:28.5]} 61... Ke3 {[%clk 0:00:21]} 62. Kh4 {[%clk 0:00:27.6]} 62...
Nxf4 {[%clk 0:00:21.5]} 63. Nxf4 {[%clk 0:00:22.8]} 63... Kxf4 {[%clk
0:00:23.4]} 64. b4 {[%clk 0:00:24.7]} 64... Ke5 {[%clk 0:00:20.9]} 65. b5 {[%clk
0:00:25.7]} 65... Kd6 {[%clk 0:00:19.1]} 66. Kg5 {[%clk 0:00:26.7]} 66... Kc5
{[%clk 0:00:20.3]} 67. Kxf5 {[%clk 0:00:27.6]} 67... Kxb5 {[%clk 0:00:21.6]}
1/2-1/2